bitfinex/quotes_ETHUSD_20241023
["timestamp","ask_amount","ask_price","bid_price","bid_amount"]
[1729696446778,3.92095,2550.4,2550.3,1.53355353]
[1729696446997,0.09803606,2550.5,2550.3,1.53355353]
[1729696447207,14.63360093,2551.3,2550.3,1.53355353]
[1729696447208,3.92022,2550.9,2550.3,1.53355353]
[1729696447374,4.61209595,2550.5,2550.3,1.53355353]
[1729696447589,0.09802029,2550.4,2550.3,1.53355353]
[1729696448186,4.01897029,2550.4,2550.3,1.53355353]
[1729696448523,0.09802965,2550.4,2550.3,1.53355353]
[1729696449405,4.01897965,2550.4,2550.3,1.53355353]
[1729696450018,4.81717965,2550.4,2550.3,1.53355353]
[1729696450747,0.01,2550.7,2550.3,1.53355353]
[1729696450748,4.61209595,2550.7,2550.3,1.53355353]
[1729696450925,0.09802237,2550.6,2550.4,0.05880399]
[1729696451132,3.62360093,2551.3,2550.4,0.05880399]
[1729696451133,0.61360093,2551.3,2550.5,3.99906712]
[1729696451334,0.61360093,2551.3,2550.4,0.05880399]
[1729696451335,4.61209595,2551.0,2550.4,0.05880399]
[1729696451505,4.61209595,2551.0,2550.4,0.70938328]
[1729696451506,0.09800718,2550.9,2550.4,0.70938328]
[1729696451701,0.09800718,2550.9,2550.4,0.05880399]
[1729696451702,8.53260595,2550.7,2550.4,0.05880399]
[1729696451903,0.09802316,2550.6,2550.4,0.05880399]
[1729696452099,4.61209595,2550.9,2550.5,3.92068]
[1729696452818,4.61209595,2550.9,2550.4,0.05880399]
[1729696453236,4.61209595,2550.9,2550.4,3.97974399]
[1729696453440,4.61209595,2550.9,2550.5,0.55917067]
[1729696454001,0.61360093,2551.3,2550.8,3.92033]
[1729696454256,0.0980053,2551.2,2550.8,3.92033]
[1729696454402,4.61209595,2551.3,2550.8,3.92033]
[1729696454603,0.09799713,2551.2,2550.7,0.7714]
[1729696454920,0.61352837,2551.6,2551.1,3.91976]
[1729696454921,4.61209595,2551.6,2551.1,3.91976]
[1729696455334,0.09798756,2551.5,2551.2,3.9197]
[1729696455535,0.09798756,2551.5,2551.1,3.91976]
[1729696455738,4.61209595,2551.6,2551.2,3.91972]
[1729696455940,0.09798609,2551.8,2551.3,3.91956]
[1729696456102,4.61209595,2551.6,2551.3,0.7714]
[1729696456548,4.71007515,2551.8,2551.3,0.7714]
[1729696456857,4.61209595,2551.5,2551.1,0.05878256]
[1729696457055,4.61209595,2551.2,2550.4,0.05880399]
[1729696457364,4.61209595,2550.8,2550.4,0.05880399]
[1729696457505,4.71011049,2550.8,2550.4,0.05880399]
[1729696457707,0.09801454,2550.8,2550.4,3.97964399]
[1729696458011,0.09801454,2551.0,2550.5,3.92074]
[1729696458443,0.09801454,2551.0,2550.6,3.92053]
[1729696458645,0.09801454,2551.0,2550.7,3.92039]
[1729696458952,0.09801454,2551.0,2550.5,4.10188721]
[1729696459160,0.09801454,2551.0,2550.5,0.18112721]
[1729696459449,0.09801454,2551.0,2550.5,4.10189721]
[1729696459648,0.09801454,2551.0,2550.6,3.92053]
[1729696459851,4.61209595,2551.2,2550.6,3.92053]
[1729696459852,4.01790686,2551.1,2550.6,3.92053]
[1729696460214,4.01800686,2551.1,2550.5,0.18112721]
[1729696460542,4.01800686,2551.1,2550.5,4.10189721]
[1729696460847,0.09800686,2551.1,2550.6,3.92055]
[1729696461054,8.53141595,2551.5,2550.9,3.92009]
[1729696461358,8.53191595,2551.2,2550.6,3.92056]
[1729696461534,8.53191595,2551.2,2550.6,7.84111]
[1729696461855,8.53191595,2551.2,2550.5,4.10188721]
[1729696461856,0.09799924,2551.1,2550.5,4.10188721]
[1729696462013,0.09799924,2551.1,2550.4,3.97963399]
[1729696462215,3.92028,2550.9,2550.4,3.97963399]
[1729696462461,0.09801302,2551.0,2550.5,3.92071]
[1729696462640,0.09801302,2551.0,2550.4,3.97963399]
[1729696462953,0.09801302,2551.0,2550.5,3.92078]
[1729696463119,0.09801302,2551.0,2550.4,3.97963399]
[1729696463339,3.92021,2550.9,2550.4,5.00306874]
[1729696463535,3.9205,2550.7,2550.4,0.05880399]
[1729696463720,0.09802149,2550.8,2550.4,0.05880399]
[1729696463921,0.09802149,2550.8,2550.4,3.97964399]
[1729696464357,0.09802149,2550.8,2550.4,0.05880399]
[1729696464573,3.92019,2550.9,2550.4,0.05880399]
[1729696464770,5.36689595,2551.2,2550.4,0.05880399]
[1729696464771,5.36689595,2551.2,2550.5,3.92079]
[1729696464934,3.92006,2551.0,2550.5,3.92079]
[1729696465145,3.92006,2551.0,2550.5,3.92078]
[1729696465476,7.84022,2551.0,2550.5,3.92078]
[1729696465628,3.92006,2551.0,2550.5,3.92078]
[1729696465829,4.01788884,2551.1,2550.6,3.92063]
[1729696466045,4.01788884,2551.1,2550.5,3.99918707]
[1729696466046,3.92003,2551.0,2550.5,3.92071]
[1729696466225,3.92003,2551.0,2550.6,3.92064]
[1729696466425,3.92003,2551.0,2550.5,3.92071]
[1729696466656,9.28671595,2551.2,2550.7,3.92038]
[1729696466657,8.53181595,2551.2,2550.7,3.92038]
[1729696466975,5.42249595,2551.8,2550.9,3.92011]
[1729696467125,3.91951,2551.4,2551.0,0.05879127]
[1729696467325,4.01749964,2551.4,2551.0,0.05879127]
[1729696467521,0.09798964,2551.4,2551.0,3.97881127]
[1729696467925,0.09798964,2551.4,2551.1,3.91987]
[1729696468268,4.01747964,2551.4,2551.0,3.97880127]
[1729696468567,7.93700964,2551.4,2551.0,0.05879127]
[1729696468765,0.09799427,2551.3,2551.1,3.91986]
[1729696469069,9.34140595,2551.8,2551.3,0.7861]
[1729696469070,4.61209595,2551.8,2551.3,0.7861]
[1729696469226,4.61209595,2551.8,2551.5,3.91913]
[1729696469565,4.61209595,2551.8,2551.3,4.70555]
[1729696469777,4.7100695,2551.8,2551.4,3.91937]
[1729696470229,8.6288995,2551.8,2551.3,4.70555]
[1729696470427,8.53092595,2551.8,2551.3,5.60787351]
[1729696470625,3.91849,2552.0,2551.3,1.68842351]
[1729696470857,4.01646358,2552.0,2551.4,0.07837886]
[1729696471074,4.61209595,2551.8,2551.0,4.76672127]
[1729696471241,3.91914,2551.6,2551.1,3.9198]
[1729696471445,3.91968,2551.3,2551.0,0.05879127]
[1729696471762,3.91987,2551.1,2551.0,0.05879127]
[1729696471925,4.01787885,2551.1,2551.0,0.05879127]
[1729696472127,8.6299748,2551.1,2551.0,0.05879127]
[1729696472351,8.53196595,2551.1,2551.0,0.05879127]
[1729696473129,3.91987,2551.1,2551.0,0.05879127]
[1729696473339,4.0178791,2551.1,2551.0,0.05879127]
[1729696473552,0.0980091,2551.1,2551.0,0.05879127]
[1729696474467,4.61209595,2551.1,2551.0,0.05879127]
[1729696474675,4.71009808,2551.1,2551.0,0.05879127]
[1729696474979,8.62996808,2551.1,2551.0,0.05879127]
[1729696475189,8.53196595,2551.1,2551.0,0.05879127]
[1729696476265,4.61209595,2551.1,2550.7,3.92046]
[1729696476495,0.09800401,2551.1,2550.7,3.92046]
[1729696477390,4.71009996,2551.1,2550.4,4.76752399]
[1729696477555,4.71009996,2551.1,2550.4,8.68840399]
[1729696477556,3.92018,2550.9,2550.4,8.68840399]
[1729696477944,4.01810876,2551.0,2550.5,3.92079]
[1729696478147,3.92019,2550.9,2550.4,5.78984974]
[1729696478369,0.09801005,2550.8,2550.4,0.05880399]
[1729696478567,4.01842005,2550.8,2550.4,0.05880399]
[1729696478767,0.09801005,2550.8,2550.5,3.92069]
[1729696478985,0.09801405,2550.9,2550.5,7.8414]
[1729696479284,0.09801405,2550.9,2550.4,0.05880399]
[1729696479285,3.92037,2550.8,2550.4,0.05880399]
[1729696479481,4.01838407,2550.8,2550.4,3.97973399]
[1729696479643,4.01838407,2550.8,2550.5,3.92065]
[1729696479644,0.09801407,2550.8,2550.5,3.92065]
[1729696479844,3.92034,2550.8,2550.4,0.05880399]
[1729696480245,0.09801419,2550.7,2550.4,0.05880399]
[1729696480545,4.01852419,2550.7,2550.4,0.05880399]
[1729696481160,8.53288595,2550.5,2550.4,0.05880399]
[1729696481778,9.35988595,2550.5,2550.4,0.05880399]
[1729696482030,3.92095,2550.4,2550.3,1.53355353]
[1729696482307,4.01899083,2550.4,2550.3,1.53355353]
[1729696482621,3.92053,2550.7,2550.3,1.53355353]
[1729696482794,3.92053,2550.7,2550.3,5.45463353]
[1729696482795,0.09802579,2550.7,2550.3,5.45463353]
[1729696482966,3.92065,2550.6,2550.3,1.53355353]
[1729696483311,0.09802327,2550.5,2550.3,1.53355353]
[1729696483669,4.01894327,2550.5,2550.3,1.53355353]
[1729696484072,3.92095,2550.4,2550.3,1.53355353]
[1729696484312,4.01898671,2550.4,2550.3,1.53355353]
[1729696484471,4.80748671,2550.4,2550.3,1.53355353]
[1729696484990,0.09803668,2550.4,2550.3,1.53355353]
[1729696485795,0.09803081,2550.5,2550.3,1.53355353]
[1729696486329,4.01885081,2550.5,2550.3,1.53355353]
[1729696486465,0.09803081,2550.5,2550.3,1.53355353]
[1729696486892,3.92066,2550.6,2550.3,1.53355353]
[1729696487093,4.01884993,2550.5,2550.3,1.53355353]
[1729696487315,3.92095,2550.4,2550.3,1.53355353]
[1729696487471,4.01898879,2550.4,2550.3,1.53355353]
[1729696488497,4.01899041,2550.4,2550.3,1.53355353]
[1729696488693,0.09804041,2550.4,2550.3,1.53355353]
[1729696488919,0.09802692,2550.6,2550.3,1.53355353]
[1729696489132,0.09802692,2550.6,2550.5,3.92079]
[1729696489413,0.09802692,2550.6,2550.3,2.30985353]
[1729696489414,0.09802336,2550.6,2550.3,2.30985353]
[1729696489811,4.01842345,2550.8,2550.3,6.23093353]
[1729696490012,3.92056,2550.7,2550.3,2.30985353]
[1729696490214,3.92095,2550.4,2550.3,1.53355353]
[1729696490416,4.68185,2550.4,2550.3,1.53355353]
[1729696490616,4.77988665,2550.4,2550.3,1.53355353]
[1729696491637,4.01898792,2550.4,2550.3,1.53355353]
[1729696492923,4.78988792,2550.4,2550.3,1.53355353]
[1729696493347,4.78988792,2550.4,2549.9,1.15577925]
[1729696493348,0.7679,2550.0,2549.9,1.15577925]
[1729696493560,7.69977,2549.8,2549.7,3.0]
[1729696493704,3.92117,2550.3,2549.7,7.22193]
[1729696493901,0.09804097,2550.3,2549.7,3.3]
[1729696494202,5.37999595,2550.5,2549.7,3.3]
[1729696494203,4.7867452,2550.5,2549.9,3.92167]
[1729696494404,3.92105,2550.4,2549.9,0.7924]
[1729696494739,3.92105,2550.4,2550.0,0.05881732]
[1729696494740,0.09803982,2550.3,2550.0,0.05881732]
[1729696494913,3.92042,2550.8,2550.0,0.05881732]
[1729696494914,3.92049,2550.7,2550.2,3.92116]
[1729696495116,0.09802867,2550.6,2550.2,3.92116]
[1729696495426,0.09802867,2550.6,2550.0,3.98026732]
[1729696495617,0.09802867,2550.6,2550.0,4.37829405]
[1729696495829,0.09802867,2550.6,2550.2,3.92118]
[1729696496030,0.09802867,2550.6,2550.0,0.45684405]
[1729696496229,4.61209595,2550.6,2550.0,0.05881732]
[1729696496433,4.01882327,2550.5,2550.0,3.98028732]
[1729696496618,0.09803327,2550.5,2550.0,3.98028732]
[1729696496814,0.09803327,2550.5,2550.1,3.92135]
[1729696497048,0.09803327,2550.5,2550.2,3.92126]
[1729696497259,0.7881,2550.8,2550.2,0.7958]
[1729696497460,4.71027,2551.1,2550.4,3.92087]
[1729696497619,0.0980151,2551.0,2550.6,3.92052]
[1729696497819,0.0980151,2551.0,2550.7,3.92042]
[1729696498047,0.88830559,2551.1,2550.8,3.92033]
[1729696498249,0.09800559,2551.1,2550.8,3.92033]
[1729696498430,0.09800559,2551.1,2550.2,0.8058]
[1729696498638,3.92017,2551.0,2550.4,3.92084]
[1729696498832,0.09800943,2551.1,2550.6,0.05880013]
[1729696499171,4.61209595,2551.2,2550.6,0.05880013]
[1729696499172,0.09800942,2551.2,2550.9,3.92015]
[1729696499385,11.01,2551.7,2551.1,3.91978]
[1729696499386,4.68377,2551.7,2551.1,3.91978]
[1729696499661,0.09799139,2551.6,2551.1,3.91978]
[1729696499822,0.09799139,2551.7,2551.2,5.18508111]
[1729696500028,0.09799139,2551.7,2551.2,5.106688]
[1729696500573,4.01694102,2551.7,2551.2,5.106688]
[1729696500773,3.91983,2551.2,2550.6,0.85380013]
[1729696500927,0.09800207,2551.1,2550.6,0.85380013]
[1729696501129,3.92006,2551.0,2550.6,0.85380013]
[1729696501357,0.0980129,2550.9,2550.6,0.85380013]
[1729696501730,4.0180729,2551.0,2550.6,0.85380013]
[1729696501952,4.0180729,2551.0,2550.6,4.77444013]
[1729696502157,0.7647,2551.4,2550.7,0.07840997]
[1729696502329,14.01,2552.1,2550.6,1.77059554]
[1729696502330,3.91928,2551.5,2551.0,3.91991]
[1729696502529,0.09798831,2551.7,2551.1,0.05879318]
[1729696502729,3.91942,2551.4,2551.1,0.05879318]
[1729696502960,4.61209595,2551.6,2551.1,0.05879318]
[1729696502961,0.09799061,2551.5,2551.1,0.05879318]
[1729696503266,3.9191,2551.6,2551.1,3.97866318]
[1729696503564,4.01709061,2551.6,2551.1,0.05879318]
[1729696503752,4.01709061,2551.6,2551.1,3.97863318]
[1729696503951,3.91937,2551.5,2551.1,0.05879318]
[1729696504266,0.0979906,2551.4,2551.1,0.05879318]
[1729696504470,0.09799061,2551.5,2551.1,4.74914318]
[1729696504772,0.09799061,2551.5,2551.1,0.82929318]
[1729696505138,0.09799061,2551.5,2551.1,4.74916318]
[1729696505341,0.09799061,2551.5,2551.1,0.82929318]
[1729696505557,0.09799061,2551.5,2551.1,4.74914318]
[1729696506279,0.09799061,2551.5,2551.2,3.91963]
[1729696506570,3.91898,2551.7,2551.2,3.99800002]
[1729696506733,3.91898,2551.7,2551.2,3.91961]
[1729696506928,3.91898,2551.7,2551.2,7.83924]
[1729696507153,0.86268137,2551.8,2551.2,4.87314415]
[1729696507366,4.78155137,2551.8,2551.3,3.91947]
[1729696507575,0.09798137,2551.8,2551.7,3.91895]
[1729696507776,0.09796812,2552.2,2551.7,4.68945]
[1729696507936,0.89826812,2552.4,2551.7,4.68945]
[1729696508136,0.89826812,2552.4,2551.8,3.91865]
[1729696508378,0.0979618,2552.7,2552.2,4.68859]
[1729696508674,4.71736,2553.0,2552.2,4.68859]
[1729696508675,3.917,2553.0,2552.5,3.91761]
[1729696508887,3.917,2553.0,2552.1,3.91831]
[1729696508888,3.91834,2552.1,2551.8,0.05876923]
[1729696509032,3.91864,2551.9,2551.8,0.05876923]
[1729696509232,4.01661931,2551.9,2551.8,0.05876923]
[1729696509432,3.91842,2552.1,2551.8,0.05876923]
[1729696509662,4.01622718,2552.2,2551.8,0.05876923]
[1729696509871,4.01622718,2552.2,2551.8,3.97754923]
[1729696509872,0.09796718,2552.2,2551.8,3.97754923]
[1729696510069,4.71802,2552.5,2551.8,4.76714415]
[1729696510273,4.01586758,2552.4,2551.9,3.91864]
[1729696510439,4.01586758,2552.4,2551.9,3.91854]
[1729696510440,4.01591758,2552.4,2551.9,3.91854]
[1729696510641,0.8003,2552.9,2552.2,3.91818]
[1729696510843,0.09794504,2552.8,2552.4,0.7705]
[1729696511142,3.91674,2553.2,2552.6,3.91748]
[1729696511445,4.7100236,2553.2,2552.4,1.25305704]
[1729696511669,0.61334245,2553.6,2552.3,0.05876437]
[1729696511670,3.91788,2552.4,2552.3,0.05876437]
[1729696511833,4.01583679,2552.4,2552.3,0.05876437]
[1729696512032,4.01583679,2552.4,2552.3,0.82926437]
[1729696512033,0.09795679,2552.4,2552.3,0.82926437]
[1729696512269,3.91788,2552.4,2552.3,0.82926437]
[1729696512440,0.8003,2553.1,2552.3,3.97677437]
[1729696512640,0.8003,2553.1,2552.4,3.91784]
[1729696512641,3.91722,2552.9,2552.4,3.91784]
[1729696512931,3.9175,2552.7,2552.3,0.78950044]
[1729696513131,4.71003404,2552.6,2552.0,0.7744]
[1729696513372,3.91798,2552.4,2552.0,0.7744]
[1729696513577,3.91766,2552.6,2552.1,3.9183]
[1729696513880,3.9175,2552.7,2552.2,3.91816]
[1729696514047,3.91722,2552.9,2552.3,3.91795]
[1729696514247,3.91749,2552.7,2552.3,0.70103451]
[1729696514598,4.01559339,2552.6,2552.3,0.05875855]
[1729696514748,3.91746,2552.7,2552.3,0.05875855]
[1729696514945,0.0979434,2552.8,2552.3,0.05875855]
[1729696515282,7.9320534,2553.0,2552.4,0.7669]
[1729696515453,3.91705,2553.0,2552.4,4.68464]
[1729696515773,3.91705,2553.0,2552.3,0.05875855]
[1729696515774,3.91781,2552.5,2552.3,0.05875855]
[1729696516077,7.83568,2552.5,2552.3,0.05875855]
[1729696516775,3.91781,2552.5,2552.3,0.05875855]
[1729696517084,4.69071,2552.8,2552.3,0.05875855]
[1729696517278,0.7551,2553.1,2552.3,0.05875855]
[1729696517436,3.91779,2552.5,2552.3,0.05875855]
[1729696517776,3.91753,2552.7,2552.3,0.05875855]
[1729696517777,3.91752,2552.7,2552.3,0.05875855]
[1729696517981,3.91751,2552.7,2552.3,0.05875855]
[1729696518134,3.91701,2553.0,2552.3,3.97664855]
[1729696518351,7.83407,2553.0,2552.4,3.91779]
[1729696518694,3.91701,2553.0,2552.4,3.91779]
[1729696519066,3.91701,2553.0,2552.3,4.4510034]
[1729696519398,4.52947245,2553.6,2552.7,4.61209595]
[1729696519568,3.91657,2553.3,2552.8,3.91718]
[1729696519891,3.91635,2553.4,2552.9,3.91708]
[1729696520308,0.09791201,2553.5,2553.1,0.8015]
[1729696520452,0.09791201,2553.5,2553.0,0.05875079]
[1729696520453,3.91665,2553.2,2553.0,0.05875079]
[1729696520655,3.91774,2552.5,2552.3,0.05875855]
[1729696521490,3.91753,2552.7,2552.3,0.05875855]
[1729696521799,3.9176,2552.6,2552.3,0.05875855]
[1729696522378,4.01554252,2552.6,2552.3,0.05875855]
[1729696522573,3.91788,2552.4,2552.3,0.05875855]
[1729696522752,3.91772,2552.5,2552.2,0.8015]
[1729696523491,4.01551889,2552.6,2552.2,0.8015]
[1729696523697,7.83475,2552.8,2552.2,4.71965]
[1729696523990,0.09794237,2552.7,2552.3,0.05875952]
[1729696524198,0.09794238,2552.9,2552.3,1.39746446]
[1729696524501,3.91767,2552.6,2552.3,0.05875952]
[1729696525495,3.91743,2552.7,2552.3,0.05875952]
[1729696526179,4.69113,2553.1,2552.3,0.05875952]
[1729696526180,3.91696,2553.0,2552.4,4.61209595]
[1729696526382,3.91696,2553.0,2552.6,0.8159]
[1729696526603,0.7952,2553.4,2552.6,4.73337]
[1729696526604,3.91674,2553.2,2552.6,4.73337]
[1729696526784,3.91687,2553.1,2552.6,4.73337]
[1729696527119,7.8338,2553.1,2552.6,0.8159]
[1729696527417,3.91657,2553.3,2552.7,3.99575196]
[1729696527609,7.93109075,2553.3,2552.7,9.40237115]
[1729696527914,7.83084,2554.0,2553.2,3.91651]
[1729696528071,4.01354138,2553.9,2553.3,3.9947511]
[1729696528413,3.91564,2553.9,2553.3,8.60684705]
[1729696528620,4.01354028,2553.9,2553.3,8.52852595]
[1729696528920,3.91527,2554.1,2553.5,4.67306]
[1729696529212,3.91527,2554.1,2553.4,3.99463775]
[1729696529213,3.91471,2554.5,2554.0,0.757]
[1729696529372,3.91471,2554.5,2553.7,0.757]
[1729696529373,0.09786564,2554.4,2553.7,0.757]
[1729696529575,7.83072,2554.1,2553.7,0.757]
[1729696529893,3.91551,2554.0,2553.8,0.05872698]
[1729696530312,3.91421,2554.8,2553.8,0.05872698]
[1729696530518,3.91558,2553.9,2553.8,0.05872698]
[1729696531023,4.01348151,2553.9,2553.8,0.05872698]
[1729696531872,7.83094,2554.0,2553.8,0.05872698]
[1729696532408,7.83096,2554.0,2553.8,0.05872698]
[1729696532592,3.91542,2554.0,2553.8,0.05872698]
[1729696533310,4.01319921,2554.1,2553.8,0.05872698]
[1729696533527,3.91521,2554.2,2553.8,0.05872698]
[1729696533686,3.91491,2554.4,2553.9,4.69099]
[1729696533891,0.8124,2554.7,2554.2,3.91504]
[1729696533892,6.91442,2554.7,2554.2,3.91504]
[1729696534198,7.01228509,2554.7,2554.2,3.91504]
[1729696534726,7.82889,2554.7,2554.2,3.91504]
[1729696535028,4.71351,2555.1,2553.9,0.7755]
[1729696535029,3.91492,2554.4,2553.9,0.7755]
[1729696535229,4.0129103,2554.3,2553.9,0.7755]
[1729696535390,3.91504,2554.3,2553.9,0.7755]
[1729696535794,3.91496,2554.3,2553.9,0.7755]
[1729696536191,3.91484,2554.4,2553.9,0.85380372]
[1729696536501,0.09788425,2554.3,2553.8,0.05872698]
[1729696536734,3.91537,2554.1,2553.8,0.05872698]
[1729696537434,3.91506,2554.3,2553.8,3.97438698]
[1729696537435,7.83015,2554.3,2553.8,3.97438698]
[1729696537736,3.91506,2554.3,2553.8,3.97437698]
[1729696538315,3.91512,2554.2,2553.8,0.05872698]
[1729696538516,3.91506,2554.3,2553.8,3.97442698]
[1729696538995,3.91519,2554.2,2553.8,0.92880868]
[1729696539191,3.91519,2554.2,2553.8,0.05872698]
[1729696539192,0.09787943,2554.2,2553.8,0.05872698]
[1729696539396,3.91558,2553.9,2553.8,0.05872698]
[1729696540790,0.7648,2554.1,2553.8,0.05872698]
[1729696540791,3.91535,2554.1,2553.8,0.05872698]
[1729696541093,4.68817,2554.5,2553.9,3.91547]
[1729696541094,3.91478,2554.5,2553.9,3.91547]
[1729696541305,3.91478,2554.5,2553.9,7.83096]
[1729696541523,4.01275552,2554.4,2553.9,0.8657687]
[1729696541831,0.09787552,2554.3,2553.8,0.82672698]
[1729696542041,3.915,2554.3,2553.8,0.82672698]
[1729696542331,3.9152,2554.2,2553.8,4.74243698]
[1729696542501,3.91528,2554.1,2553.8,0.82672698]
[1729696542700,3.9152,2554.2,2553.8,4.74242698]
[1729696542932,3.91507,2554.3,2553.8,4.74242698]
[1729696543091,3.91507,2554.3,2553.8,4.82073349]
[1729696544014,3.91492,2554.4,2553.8,4.82073349]
[1729696544201,3.91513,2554.2,2553.8,0.90503349]
[1729696544415,3.91535,2554.1,2553.8,0.82672698]
[1729696544667,0.7867,2554.7,2553.8,0.82672698]
[1729696544829,3.91503,2554.3,2553.8,0.82672698]
[1729696545131,3.91503,2554.3,2553.8,4.74243698]
[1729696545498,3.91474,2554.5,2553.9,3.99375405]
[1729696545707,3.91474,2554.5,2554.0,3.99359857]
[1729696545904,3.91498,2554.3,2553.9,3.9155]
[1729696546126,3.91498,2554.3,2553.8,5.22444109]
[1729696546434,3.91537,2554.1,2553.8,0.82672698]
[1729696546734,3.91537,2554.1,2553.6,3.91603]
[1729696546735,0.09788395,2554.0,2553.2,0.7512]
[1729696547028,0.09788395,2554.0,2553.1,0.0587433]
[1729696547029,3.91642,2553.4,2553.1,0.0587433]
[1729696547711,3.91665,2553.2,2553.1,0.0587433]
[1729696548509,3.9165,2553.3,2553.1,0.0587433]
[1729696548701,3.91635,2553.4,2553.1,0.0587433]
[1729696548901,3.91629,2553.5,2553.1,0.0587433]
[1729696549208,3.91639,2553.4,2553.1,0.0587433]
[1729696550031,3.91632,2553.5,2553.1,0.0587433]
[1729696550205,3.91653,2553.3,2553.1,0.0587433]
[1729696550404,7.83315,2553.3,2553.1,0.0587433]
[1729696550636,3.91653,2553.3,2553.1,0.0587433]
[1729696550837,3.91635,2553.4,2553.1,0.0587433]
[1729696551039,3.91612,2553.6,2553.2,0.87462926]
[1729696551238,3.0,2554.2,2553.2,0.7963]
[1729696551239,3.9165,2553.3,2553.2,0.7963]
[1729696551738,3.91665,2553.2,2553.1,0.0587433]
[1729696551939,5.38969595,2553.7,2553.1,0.0587433]
[1729696551940,3.91635,2553.4,2553.1,0.0587433]
[1729696552113,3.9163,2553.5,2553.1,0.0587433]
[1729696552319,3.91643,2553.4,2553.1,0.0587433]
[1729696552721,3.9162,2553.5,2553.1,0.0587433]
[1729696553441,3.91636,2553.4,2553.1,0.0587433]
[1729696553738,0.09791158,2553.6,2553.1,0.48502626]
[1729696554037,0.09791158,2553.6,2552.9,4.7134]
[1729696554038,3.91642,2553.4,2552.9,4.7134]
[1729696554603,3.9165,2553.3,2552.9,0.7963]
[1729696554948,4.01466215,2553.2,2553.0,0.05874918]
[1729696555108,3.9168,2553.1,2553.0,0.05874918]
[1729696555504,3.91675,2553.2,2553.0,0.05874918]
[1729696556027,4.6935,2553.7,2553.1,0.8158]
[1729696556028,3.91621,2553.5,2553.1,0.8158]
[1729696556227,3.91591,2553.7,2553.1,1.30277677]
[1729696556436,3.91591,2553.7,2553.2,3.91658]
[1729696556599,7.83193,2553.7,2553.2,3.91658]
[1729696556799,3.91581,2553.8,2553.3,3.91643]
[1729696557159,3.91581,2553.8,2553.2,3.91658]
[1729696557160,3.916,2553.7,2553.2,3.91664]
[1729696557334,4.01371666,2553.8,2553.3,3.91648]
[1729696557645,4.013889,2553.7,2553.3,0.864892]
[1729696558018,3.91619,2553.5,2553.3,0.864892]
[1729696558419,3.91665,2553.2,2553.1,0.8158]
[1729696558748,4.61209595,2553.9,2553.0,0.05874918]
[1729696558749,3.91652,2553.3,2553.0,0.05874918]
[1729696558948,0.09791895,2553.2,2553.0,0.05874918]
[1729696559245,3.9168,2553.1,2553.0,0.05874918]
[1729696559685,3.9168,2553.1,2552.4,0.761]
[1729696559686,0.09792317,2553.1,2552.4,0.761]
[1729696559811,3.91718,2552.9,2552.5,0.467899]
[1729696560237,3.91743,2552.7,2552.5,0.467899]
[1729696560448,3.91668,2553.2,2552.6,0.05875026]
[1729696560449,3.91665,2553.2,2552.6,0.05875026]
[1729696560607,3.91707,2553.0,2552.6,0.05875026]
[1729696561022,3.91733,2552.8,2552.6,0.05875026]
[1729696561953,3.91724,2552.9,2552.6,0.05875026]
[1729696562432,3.91716,2552.9,2552.6,0.05875026]
[1729696562619,3.91695,2553.1,2552.6,0.05875026]
[1729696563050,3.91698,2553.0,2552.6,0.05875026]
[1729696563707,3.91669,2553.2,2552.6,4.92016511]
[1729696563912,3.91661,2553.3,2552.7,3.91729]
[1729696564132,4.01427012,2553.4,2552.9,3.91703]
[1729696564334,3.91582,2553.8,2553.0,0.7844]
[1729696564335,3.91607,2553.6,2553.0,0.7844]
[1729696564534,3.91628,2553.5,2553.0,4.77953608]
[1729696564735,3.91628,2553.5,2553.0,5.64920569]
[1729696565140,3.91628,2553.5,2553.0,1.65406961]
[1729696565141,3.91646,2553.4,2553.0,1.65406961]
[1729696565321,4.01441138,2553.3,2553.0,1.65406961]
[1729696565526,3.91629,2553.5,2553.0,5.64923206]
[1729696565708,3.91615,2553.6,2553.1,3.9168]
[1729696565908,0.09791265,2553.9,2553.2,0.07833012]
[1729696566129,0.09791265,2553.9,2553.0,0.7844]
[1729696566130,4.7100086,2553.9,2553.0,0.7844]
[1729696566353,3.91636,2553.4,2553.0,0.7844]
[1729696566675,0.09791321,2553.3,2552.7,0.7844]
[1729696566824,3.91703,2553.0,2552.7,0.7844]
[1729696567307,0.8155,2553.5,2552.7,0.7844]
[1729696567435,0.8155,2553.5,2552.6,0.13709309]
[1729696567436,3.91742,2552.7,2552.6,0.05875026]
[1729696568151,4.01536005,2552.7,2552.6,0.05875026]
[1729696568535,3.91707,2553.0,2552.6,0.05875026]
[1729696568742,3.91722,2552.9,2552.6,0.05875026]
[1729696568984,3.91727,2552.8,2552.6,0.05875026]
[1729696569144,4.0153534,2552.7,2552.2,4.68097]
[1729696569345,3.91757,2552.6,2552.2,1.622736]
[1729696569653,3.91757,2552.6,2552.3,0.05876373]
[1729696570356,3.91768,2552.6,2552.3,0.05876373]
[1729696570565,3.91788,2552.4,2552.3,0.05876373]
[1729696570751,3.91788,2552.4,2551.9,0.7855]
[1729696570963,3.91788,2552.4,2552.0,0.470418]
[1729696571499,7.83585,2552.4,2552.0,0.470418]
[1729696571797,3.91788,2552.4,2552.0,0.470418]
[1729696572152,4.01569352,2552.5,2552.1,0.05876441]
[1729696572356,3.91738,2552.8,2552.3,3.91796]
[1729696572591,3.91738,2552.8,2552.4,0.7521]
[1729696572766,4.01532198,2552.8,2552.4,0.7521]
[1729696572967,0.09794198,2552.8,2552.4,0.7521]
[1729696573192,0.09793966,2552.9,2552.5,3.99600172]
[1729696573405,0.7687,2553.2,2552.8,0.7521]
[1729696573406,6.91666,2553.2,2552.8,0.7521]
[1729696573699,0.7687,2553.6,2553.0,3.91692]
[1729696573700,3.91629,2553.5,2553.0,3.91692]
[1729696573999,3.91608,2553.6,2553.1,3.91673]
[1729696574156,0.0979132,2553.8,2553.2,4.70655]
[1729696574157,3.91578,2553.8,2553.2,4.70655]
[1729696574357,3.91578,2553.8,2553.2,0.79]
[1729696574552,3.91578,2553.8,2553.2,1.652364]
[1729696574793,7.83111,2554.0,2553.4,3.91622]
[1729696574992,4.70451,2554.2,2553.4,0.07831832]
[1729696575192,15.62209595,2554.8,2553.8,0.8227]
[1729696575193,3.91546,2554.0,2553.8,0.8227]
[1729696575557,7.83102,2554.0,2553.5,0.8227]